lending/lending_fUSD_20241124
["ID","MTS","AMOUNT","RATE_DAILY","PERIOD"]
[343212411,1732464655403,-405.79004,0.00047495,2]
[343212412,1732464655414,-2199.55385146,0.00047495,2]
[343212413,1732464655425,-522.88,0.00047495,2]
[343212414,1732464655435,-500.0,0.00047495,2]
[343212415,1732464655445,-1106.07,0.00047495,2]
[343212416,1732464655454,-1446.43,0.00047495,2]
[343212417,1732464655467,-417.21,0.00047495,2]
[343212418,1732464655476,-151.0,0.00047495,14]
[343212419,1732464655486,-151.0,0.00047495,14]
[343212420,1732464655494,-525.53,0.00047495,2]
[343212421,1732464655504,-2250.31,0.00047495,2]
[343212422,1732464655516,-321.228453,0.00047495,14]
[343212423,1732464655526,-321.228453,0.00047495,14]
[343212424,1732464655537,-321.228453,0.00047495,14]
[343212425,1732464655546,-321.228453,0.00047495,14]
[343212426,1732464655558,-151.0,0.00047495,14]
[343212427,1732464655567,-151.0,0.00047495,14]
[343212428,1732464655575,-670.50900155,0.00047495,2]
[343212429,1732464655665,-5329.46879285,0.00046485,63]
[343212430,1732464655680,-959.93898,0.00046485,63]
[343212431,1732464655703,-1667.13222715,0.00046485,63]
[343212432,1732464655712,-1406.79099845,0.00047495,2]
[343212433,1732464655724,-151.0,0.00047495,14]
[343212434,1732464655733,-151.0,0.00047495,14]
[343212435,1732464655742,-151.0,0.00047495,14]
[343212436,1732464655752,-162.471098,0.00047495,14]
[343212437,1732464655761,-342.00453826,0.00047495,2]
[343212438,1732464655771,-500.0,0.00047495,2]
[343212439,1732464655780,-251.611018,0.00047495,14]
[343212440,1732464655790,-251.611018,0.00047495,14]
[343212441,1732464655800,-500.0,0.00047495,2]
[343212442,1732464655809,-1578.98,0.00047495,2]
[343212443,1732464655819,-1502.66,0.00047495,2]
[343212444,1732464655828,-160.212324,0.00047495,14]
[343212445,1732464655837,-160.212324,0.00047495,14]
[343212446,1732464655847,-500.0,0.00047495,2]
[343212447,1732464655858,-852.156318,0.00047495,14]
[343212448,1732464655867,-349.15862717,0.00047495,2]
[343212449,1732464655877,-500.0,0.00047495,2]
[343212450,1732464655886,-500.0,0.00047495,2]
[343212451,1732464655895,-500.0,0.00047495,2]
[343212452,1732464655904,-500.0,0.00047495,2]
[343212453,1732464655915,-500.0,0.00047495,2]
[343212454,1732464655925,-500.0,0.00047495,120]
[343212455,1732464656040,-500.0,0.00047495,2]
[343212456,1732464656049,-500.0,0.00047495,2]
[343212457,1732464656059,-500.0,0.00047495,2]
[343212458,1732464656068,-500.0,0.00047495,2]
[343212459,1732464656077,-151.0,0.00047496,14]
[343212460,1732464656086,-1000.0,0.00047498,2]
[343212461,1732464656095,-151.0,0.00047498,14]
[343212462,1732464656104,-500.0,0.00047498,2]
[343212463,1732464656114,-500.0,0.00047498,2]
[343212464,1732464656123,-500.0,0.00047498,2]
[343212465,1732464656132,-153.794251,0.00047498,2]
[343212466,1732464656141,-500.0,0.00047498,2]
[343212467,1732464656152,-500.0,0.00047498,2]
[343212468,1732464656162,-500.0,0.00047498,2]
[343212469,1732464656172,-500.0,0.00047498,2]
[343212470,1732464656182,-500.0,0.00047498,2]
[343212471,1732464656192,-913.12,0.00047498,2]
[343212472,1732464656201,-500.0,0.00047498,2]
[343212473,1732464656211,-793.03,0.00047498,2]
[343212474,1732464656225,-596.38,0.00047498,2]
[343212475,1732464656234,-500.0,0.00047498,2]
[343212476,1732464656244,-500.0,0.00047498,2]
[343212477,1732464656253,-500.0,0.00047498,2]
[343212478,1732464656263,-500.0,0.00047498,2]
[343212479,1732464656274,-500.0,0.00047498,2]
[343212480,1732464656284,-500.0,0.00047498,2]
[343212481,1732464656293,-854.37,0.00047498,2]
[343212482,1732464656303,-500.0,0.00047498,2]
[343212483,1732464656313,-664.86,0.00047498,2]
[343212484,1732464656322,-1457.22,0.00047498,2]
[343212485,1732464656333,-500.0,0.00047498,2]
[343212486,1732464656343,-500.0,0.00047498,2]
[343212487,1732464656353,-1078.35,0.00047498,2]
[343212488,1732464656361,-7542.30393877,0.00047498,120]
[343212489,1732464656376,-771.989063,0.00047417,14]
[343212490,1732464656385,-972.37606123,0.00047498,120]
[343212491,1732464656393,-500.0,0.00047498,2]
[343212492,1732464656402,-409.53487577,0.00047498,2]
[343212493,1732464656412,-237.24512423,0.00047498,2]
[343212494,1732464656421,-170.33487577,0.00047498,2]
[343212495,1732464656433,-329.66512423,0.00047498,2]
[343212496,1732464656447,-500.0,0.00047498,2]
[343212497,1732464656457,-129.07487577,0.00047499,7]
[343212498,1732464656519,-325.91,0.00047499,7]
[343212499,1732464656533,-1028.01512423,0.00047499,7]
[343212500,1732464656543,-1150.91607306,0.00047499,60]
[343212501,1732464656553,-151.0,0.00047499,14]
[343212502,1732464656563,-151.0,0.00047499,14]
[343212503,1732464656572,-151.0,0.00047499,14]
[343212504,1732464656581,-151.0,0.00047499,14]
[343212505,1732464656591,-151.0,0.00047499,14]
[343212506,1732464656601,-151.0,0.00047499,14]
[343212507,1732464656611,-151.0,0.00047499,14]
[343212508,1732464656620,-513.57562763,0.00047499,2]
[343212509,1732464656629,-151.50888508,0.00047499,2]
[343212515,1732465300651,500.0,0.0004,7]
[343212516,1732465302147,168.18025,0.00033106,2]
[343212518,1732465483214,1999.9,0.0004,2]
[343212519,1732465512512,186.97684553,0.00025,2]
[343212520,1732465514955,-168.18025,0.00040575,2]
[343212521,1732465514981,-166.01,0.00041096,2]
[343212525,1732465717538,350.00076814,0.00038,2]
[343212561,1732465831489,-800.0,0.00042602,60]
[343212562,1732465831499,-500.0,0.00042602,60]
[343212563,1732465831508,-500.0,0.00042602,60]
[343212564,1732465831518,-10.01299581,0.0004305,2]
[343212565,1732465831600,-786.30415657,0.0004305,2]
[343212566,1732465831609,-800.0,0.0004315,60]
[343212567,1732465831618,-500.0,0.0004315,60]
[343212568,1732465831628,-391.2,0.00043405,2]
[343212569,1732465831637,-550.0,0.00043697,5]
[343212570,1732465831646,-800.0,0.00043698,60]
[343212571,1732465831655,-500.0,0.00043698,60]
[343212572,1732465831664,-500.0,0.00043698,60]
[343212573,1732465831673,-500.0,0.00044,30]
[343212574,1732465831682,-500.0,0.00044,30]
[343212575,1732465831691,-3435.77892313,0.00044245,120]
[343212576,1732465831727,-1463.69478,0.00044245,120]
[343212594,1732465837724,-12863.81321701,0.00044245,120]
[343212595,1732465837837,-2760.00408885,0.00044245,120]
[343212613,1732465839378,-358.86314493,0.00044245,120]
[343212614,1732465839391,-369.21499998,0.00044245,120]
[343212615,1732465839403,-276.1845077,0.00044245,120]
[343212616,1732465839576,-2040.58067412,0.00044245,120]
[343212617,1732465839586,-800.0,0.00044246,120]
[343212618,1732465839595,-500.0,0.00044246,120]
[343212619,1732465839605,-796.31715237,0.00044378,2]
[343212620,1732465839614,-800.0,0.0004452,120]
[343212621,1732465839624,-500.0,0.0004452,120]
[343212622,1732465839633,-800.0,0.00044794,120]
[343212623,1732465839643,-500.0,0.00044794,120]
[343212624,1732465839652,-500.0,0.00044794,120]
[343212625,1732465839662,-966.6,0.00045,120]
[343212626,1732465839671,-560.92293167,0.00045,30]
[343212627,1732465839680,-500.0,0.00045,30]
[343212628,1732465839689,-500.0,0.00045,30]
[343212629,1732465839698,-500.0,0.00045068,120]
[343212630,1732465839707,-500.0,0.00045068,120]
[343212631,1732465839720,-200.0,0.000452,2]
[343212632,1732465839730,-922.96,0.00045273,2]
[343212633,1732465839739,-800.0,0.00045342,120]
[343212634,1732465839748,-500.0,0.00045342,120]
[343212635,1732465839758,-435.76571312,0.00045342,120]
[343212636,1732465839767,-250.0,0.00045384,2]
[343212637,1732465839776,-200.0,0.0004547,2]
[343212638,1732465839785,-580.7,0.000456,120]
[343212639,1732465839794,-403.56,0.000456,120]
[343212640,1732465839804,-500.0,0.00045616,120]
[343212641,1732465839813,-500.0,0.00045616,120]
[343212642,1732465839822,-391.2,0.00045669,2]
[343212643,1732465839831,-796.31715237,0.00045705,2]
[343212644,1732465839841,-11216.61,0.00045721,2]
[343212645,1732465839850,-500.0,0.00045805,2]
[343212646,1732465839859,-1406.88,0.00045875,2]
[343212647,1732465839870,-800.0,0.0004589,120]
[343212648,1732465839882,-500.0,0.0004589,120]
[343212649,1732465839891,-166.01,0.00045927,2]
[343212650,1732465839900,-250.0,0.00046037,120]
[343212651,1732465839909,-1000.0,0.00046075,2]
[343212652,1732465839923,-166.01,0.00046143,2]
[343212653,1732465839932,-500.0,0.00046164,120]
[343212654,1732465839941,-500.0,0.00046164,120]
[343212655,1732465839950,-154.2,0.00046199,120]
[343212656,1732465839960,-150.26,0.00046204,2]
[343212657,1732465839972,-300.0,0.00046312,2]
[343212658,1732465839981,-158.02,0.0004639,120]
[343212659,1732465839991,-800.0,0.00046438,120]
[343212660,1732465840000,-500.0,0.00046438,120]
[343212661,1732465840010,-300.0,0.000466,2]
[343212662,1732465840020,-300.0,0.000467,17]
[343212663,1732465840032,-500.0,0.00046712,120]
[343212664,1732465840041,-700.0,0.000468,17]
[343212665,1732465840057,-150.0,0.00046815,2]
[343212666,1732465840070,-1100.0,0.000469,17]
[343212667,1732465840079,-800.0,0.00046986,120]
[343212668,1732465840089,-500.0,0.00046986,120]
[343212669,1732465840099,-631.94395,0.0004702,35]
[343212670,1732465840108,-1301.63812987,0.00047043,10]
[343212671,1732465840121,-11811.17614454,0.00047043,10]
[343212672,1732465840131,-66863.67485479,0.00047044,120]
[343212673,1732465840140,-777.08448027,0.00047044,15]
[343212674,1732465840150,-626.8,0.00047134,30]
[343212675,1732465840159,-1597.91343507,0.00047134,2]
[343212676,1732465840168,-398.335,0.00047144,79]
[343212677,1732465840178,-4549.0361459,0.00047144,2]
[343212688,1732465842442,-4983.90739169,0.00047144,2]
[343212691,1732465842453,-1960.74648988,0.00047144,2]
[343212694,1732465842546,-14879.75717253,0.00047144,2]
[343212695,1732465842555,-19630.43009751,0.00047216,30]
[343212696,1732465842564,-500.0,0.00047243,2]
[343212697,1732465842573,-500.0,0.00047243,2]
[343212698,1732465842583,-500.0,0.00047243,2]
[343212699,1732465842592,-500.0,0.00047243,2]
[343212700,1732465842600,-153.794252,0.00047243,2]
[343212701,1732465842609,-500.0,0.00047243,2]
[343212702,1732465842618,-500.0,0.00047243,2]
[343212703,1732465842627,-500.0,0.00047243,2]
[343212704,1732465842635,-500.0,0.00047243,2]
[343212705,1732465842644,-840.72,0.00047243,2]
[343212706,1732465842654,-500.0,0.00047243,2]
[343212707,1732465842662,-500.0,0.00047243,2]
[343212708,1732465842671,-500.0,0.00047243,2]
[343212709,1732465842679,-899.69,0.00047243,2]
[343212710,1732465842688,-500.0,0.00047243,2]
[343212711,1732465842697,-500.0,0.00047243,2]
[343212712,1732465842707,-633.16,0.00047243,2]
[343212713,1732465842718,-500.0,0.00047243,2]
[343212714,1732465842727,-590.27,0.00047243,2]
[343212715,1732465842736,-500.0,0.00047243,2]
[343212716,1732465842746,-500.0,0.00047243,2]
[343212717,1732465842755,-500.0,0.00047243,2]
[343212718,1732465842764,-500.0,0.00047243,2]
[343212719,1732465842772,-500.0,0.00047243,2]
[343212720,1732465842781,-747.57,0.00047243,2]
[343212721,1732465842790,-500.0,0.00047243,2]
[343212722,1732465842799,-158.78301095,0.00047243,2]
[343212723,1732465842808,-581.75,0.00047243,2]
[343212724,1732465842818,-500.0,0.00047243,2]
[343212725,1732465842827,-500.0,0.00047243,2]
[343212726,1732465842837,-500.0,0.00047243,2]
[343212727,1732465842846,-1302.8,0.00047243,2]
[343212728,1732465842854,-500.0,0.00047243,2]
[343212729,1732465842865,-500.0,0.00047243,2]
[343212730,1732465842879,-7450.34,0.00047243,120]
[343212731,1732465842888,-500.0,0.00047243,2]
[343212732,1732465842897,-500.0,0.00047243,2]
[343212733,1732465842906,-500.0,0.00047243,2]
[343212734,1732465842917,-1036.82,0.00047243,2]
[343212735,1732465842926,-500.0,0.00047243,2]
[343212736,1732465842935,-500.0,0.00047243,2]
[343212737,1732465842944,-500.0,0.00047243,2]
[343212738,1732465842953,-500.0,0.00047243,2]
[343212740,1732465842965,-500.0,0.00047243,2]
[343212742,1732465842974,-490.11112602,0.00047243,2]
[343212743,1732465842983,-565.14,0.00047243,2]
[343212745,1732465842992,-500.0,0.00047243,2]
[343212746,1732465843001,-273.16434099,0.00047243,2]
[343212747,1732465843013,-226.83565901,0.00047243,2]
[343212748,1732465843022,-500.0,0.00047243,2]
[343212749,1732465843030,-500.0,0.00047243,2]
[343212750,1732465843039,-500.0,0.00047243,2]
[343212751,1732465843048,-290.66434099,0.00047243,2]
[343212752,1732465843064,-209.33565901,0.00047243,2]
[343212753,1732465843073,-500.0,0.00047243,2]
[343212755,1732465843082,-500.0,0.00047243,2]
[343212757,1732465843091,-500.0,0.00047243,2]
[343212758,1732465843100,-500.0,0.00047243,2]
[343212759,1732465843109,-500.0,0.00047243,2]
[343212760,1732465843118,-500.0,0.00047243,2]
[343212761,1732465843127,-500.0,0.00047243,2]
[343212762,1732465843136,-500.0,0.00047243,2]
[343212763,1732465843145,-500.0,0.00047243,2]
[343212764,1732465843154,-500.0,0.00047243,2]
[343212765,1732465843163,-500.0,0.00047243,2]
[343212766,1732465843172,-509.39,0.00047243,2]
[343212767,1732465843181,-500.0,0.00047243,2]
[343212768,1732465843191,-500.0,0.00047243,2]
[343212769,1732465843200,-1650.3427,0.00047244,2]
[343212770,1732465843209,-4608.26475483,0.00047244,2]
[343212771,1732465843225,-1107.22499989,0.00047244,2]
[343212772,1732465843242,-5439.45596875,0.00047244,2]
[343212773,1732465843277,-3151.0466689,0.00047244,2]
[343212774,1732465843308,-5961.039198,0.00047244,2]
[343212775,1732465843320,-2028.05390908,0.00047244,2]
[343212776,1732465843335,-519.8649462,0.00047244,2]
[343212777,1732465843346,-4058.65071211,0.00047244,2]
[343212778,1732465843357,-1123.62811608,0.00047244,2]
[343212805,1732465845642,-422.6297606,0.00047243,2]
[343212806,1732465845651,-4263.1202394,0.00047244,2]
[343212807,1732465845695,-47339.27329486,0.00047244,2]
[343212808,1732465845710,-1445.13923384,0.00047244,2]
[343212809,1732465845744,-9609.1996,0.00047244,2]
[343212813,1732465924690,183.81,0.00026986,120]
[343212814,1732465926909,190.22325,0.00033657,2]
[343212823,1732466140276,160.03,0.00041096,2]
[343212827,1732466702536,150.0,0.00034548,10]
[343212829,1732466880693,250.0,0.00031,2]
[343212830,1732466881826,300.0,0.00033,2]
[343212831,1732466883015,350.0,0.00035,2]
[343212854,1732467031547,-272.72403646,0.00043456,2]
[343212855,1732467031656,-102.06596354,0.00043456,2]
[343212856,1732467031666,-255.90095676,0.000441,2]
[343212857,1732467031714,-495.20002,0.000441,2]
[343212858,1732467031772,-34.89902324,0.000441,2]
[343212859,1732467031783,-500.0,0.00044794,120]
[343212860,1732467031792,-500.0,0.00044794,120]
[343212861,1732467031802,-166.01,0.00045231,2]
[343212862,1732467031811,-7455.12,0.00045242,2]
[343212863,1732467031820,-491.65649263,0.00045264,2]
[343212864,1732467031884,-4811.1,0.00045264,2]
[343212884,1732467037632,-705.89943322,0.00045264,2]
[343212894,1732467038295,-17881.34407415,0.00045264,2]
[343212895,1732467038305,-241.56,0.00045295,2]
[343212896,1732467038315,-883.21,0.00045305,2]
[343212897,1732467038325,-9769.44,0.00045318,2]
[343212898,1732467038339,-500.0,0.00045342,120]
[343212899,1732467038349,-500.0,0.00045342,120]
[343212900,1732467038359,-3891.16,0.00045423,2]
[343212901,1732467038369,-1000.0,0.00045448,2]
[343212902,1732467038379,-620.9,0.00045452,30]
[343212903,1732467038389,-999.99,0.00045452,2]
[343212904,1732467038399,-150.99,0.00045452,2]
[343212905,1732467038408,-299.99,0.00045452,120]
[343212906,1732467038418,-9999.99,0.00045452,2]
[343212907,1732467038427,-150.0,0.00045452,2]
[343212908,1732467038437,-2000.0,0.00045474,2]
[343212909,1732467038446,-156.26,0.00045484,120]
[343212910,1732467038456,-168.33,0.00045582,120]
[343212911,1732467038465,-150.0,0.00045589,10]
[343212912,1732467038475,-5339.0,0.00045651,2]
[343212913,1732467038484,-250.0,0.00045705,120]
[343212914,1732467038493,-374.79,0.0004572,2]
[343212915,1732467038503,-250.0,0.00045751,2]
[343212916,1732467038512,-3933.49,0.00045781,2]
[343212917,1732467038522,-167.03,0.00045827,2]
[343212918,1732467038531,-500.0,0.0004589,120]
[343212919,1732467038546,-500.0,0.0004589,120]
[343212920,1732467038556,-1630.9,0.00045897,2]
[343212921,1732467038565,-250.0,0.00045925,120]
[343212922,1732467038575,-500.0,0.00045962,2]
[343212923,1732467038585,-433.814,0.00046251,76]
[343212924,1732467038594,-4021.0,0.00046396,117]
[343212925,1732467038603,-500.0,0.00046438,120]
[343212926,1732467038613,-500.0,0.00046438,120]
[343212927,1732467038623,-400.0,0.000465,16]
[343212928,1732467038632,-800.0,0.000466,17]
[343212929,1732467038642,-1300.0,0.000467,17]
[343212930,1732467038651,-526.61996,0.0004677,34]
[343212931,1732467038661,-1700.0,0.000468,17]
[343212932,1732467038670,-2100.0,0.000469,17]
[343212933,1732467038679,-858.6616771,0.00046916,15]
[343212934,1732467038688,-500.0,0.00046986,120]
[343212935,1732467038699,-517.37148783,0.00046986,120]
[343212936,1732467038708,-556.34,0.00047006,30]
[343212937,1732467038718,-401.79772484,0.00047015,28]
[343212938,1732467038727,-64311.4348,0.00047016,2]
[343212939,1732467038737,-12010.2493,0.00047016,2]
[343212940,1732467038746,-6946.4407,0.00047044,2]
[343212941,1732467038756,-500.0,0.00047114,2]
[343212942,1732467038765,-627.62,0.00047114,2]
[343212943,1732467038774,-627.62,0.00047114,2]
[343212944,1732467038787,-500.0,0.00047114,2]
[343212945,1732467038800,-500.0,0.00047114,2]
[343212946,1732467038810,-500.0,0.00047114,2]
[343212947,1732467038821,-500.0,0.00047114,2]
[343212948,1732467038830,-500.0,0.00047114,2]
[343212949,1732467038839,-500.0,0.00047114,2]
[343212950,1732467038849,-500.0,0.00047114,2]
[343212951,1732467038858,-500.0,0.00047114,2]
[343212952,1732467038868,-500.0,0.00047114,2]
[343212953,1732467038877,-500.0,0.00047114,2]
[343212954,1732467038887,-500.0,0.00047114,2]
[343212955,1732467038896,-500.0,0.00047114,2]
[343212956,1732467038906,-500.0,0.00047114,2]
[343212957,1732467038915,-244.8126071,0.00047114,2]
[343212958,1732467038925,-500.0,0.00047114,2]
[343212959,1732467038934,-500.0,0.00047114,2]
[343212960,1732467038943,-1501.97,0.00047114,2]
[343212961,1732467038952,-1501.97,0.00047114,2]
[343212962,1732467038962,-500.0,0.00047114,2]
[343212963,1732467038972,-500.0,0.00047114,2]
[343212964,1732467038984,-500.0,0.00047114,2]
[343212965,1732467038993,-500.0,0.00047114,2]
[343212966,1732467039002,-500.0,0.00047114,2]
[343212967,1732467039012,-500.0,0.00047114,2]
[343212968,1732467039021,-500.0,0.00047114,2]
[343212969,1732467039031,-1386.27,0.00047114,2]
[343212970,1732467039046,-1386.27,0.00047114,2]
[343212971,1732467039055,-500.0,0.00047114,2]
[343212972,1732467039064,-500.0,0.00047114,2]
[343212973,1732467039074,-547.33,0.00047114,2]
[343212974,1732467039083,-547.33,0.00047114,2]
[343212975,1732467039093,-500.0,0.00047114,2]
[343212976,1732467039103,-500.0,0.00047114,2]
[343212977,1732467039113,-500.0,0.00047114,2]
[343212978,1732467039122,-1996.15,0.00047114,2]
[343212979,1732467039132,-1996.15,0.00047114,2]
[343212980,1732467039141,-562.43,0.00047114,2]
[343212981,1732467039151,-562.43,0.00047114,2]
[343212982,1732467039161,-500.0,0.00047114,2]
[343212983,1732467039170,-500.0,0.00047114,2]
[343212984,1732467039179,-500.0,0.00047114,2]
[343212985,1732467039188,-500.0,0.00047114,2]
[343212986,1732467039197,-500.0,0.00047114,2]
[343212987,1732467039206,-500.0,0.00047114,2]
[343212988,1732467039215,-500.0,0.00047114,2]
[343212989,1732467039225,-500.0,0.00047114,2]
[343212990,1732467039234,-500.0,0.00047114,2]
[343212991,1732467039244,-500.0,0.00047114,2]
[343212992,1732467039254,-500.0,0.00047114,2]
[343212993,1732467039263,-500.0,0.00047114,2]
[343212994,1732467039278,-500.0,0.00047114,2]
[343212995,1732467039297,-500.0,0.00047114,2]
[343212996,1732467039307,-500.0,0.00047114,2]
[343212997,1732467039318,-500.0,0.00047114,2]
[343212998,1732467039327,-264073.23191326,0.00047115,23]
[343212999,1732467039336,-7481.87233886,0.00047115,20]
[343213001,1732467039345,-447.05194657,0.00047115,2]
[343213003,1732467039356,-500.0,0.00047115,2]
[343213005,1732467039365,-500.0,0.00047115,2]
[343213007,1732467039375,-500.0,0.00047115,2]
[343213008,1732467039385,-500.0,0.00047115,2]
[343213009,1732467039393,-500.0,0.00047115,2]
[343213012,1732467039403,-561.8,0.00047115,2]
[343213014,1732467039412,-500.0,0.00047115,2]
[343213015,1732467039422,-500.0,0.00047115,2]
[343213016,1732467039432,-500.0,0.00047115,2]
[343213017,1732467039441,-500.0,0.00047115,2]
[343213018,1732467039451,-508.89873463,0.00047115,2]
[343213019,1732467039461,-500.0,0.00047115,2]
[343213020,1732467039470,-500.0,0.00047115,2]
[343213021,1732467039480,-500.0,0.00047115,2]
[343213022,1732467039489,-305.51,0.00047115,2]
[343213023,1732467039499,-500.0,0.00047115,2]
[343213024,1732467039509,-500.0,0.00047115,2]
[343213025,1732467039519,-500.0,0.00047115,2]
[343213026,1732467039529,-500.0,0.00047115,2]
[343213027,1732467039544,-500.0,0.00047115,2]
[343213028,1732467039554,-500.0,0.00047115,2]
[343213029,1732467039563,-500.0,0.00047115,2]
[343213030,1732467039574,-500.0,0.00047115,2]
[343213031,1732467039584,-375.36215277,0.00047115,2]
[343213032,1732467039593,-215.45,0.00047115,2]
[343213033,1732467039603,-539.14,0.00047115,2]
[343213034,1732467039612,-500.0,0.00047115,2]
[343213035,1732467039622,-500.0,0.00047115,2]
[343213036,1732467039631,-500.0,0.00047115,2]
[343213037,1732467039641,-580.51,0.00047115,2]
[343213038,1732467039651,-727.58,0.00047115,2]
[343213039,1732467039662,-500.0,0.00047115,2]
[343213040,1732467039672,-500.0,0.00047115,2]
[343213041,1732467039682,-500.0,0.00047115,2]
[343213042,1732467039692,-500.0,0.00047115,2]
[343213043,1732467039701,-168.0,0.00047115,2]
[343213044,1732467039710,-500.0,0.00047115,2]
[343213045,1732467039719,-500.0,0.00047115,2]
[343213046,1732467039729,-500.0,0.00047115,2]
[343213047,1732467039739,-500.0,0.00047115,2]
[343213048,1732467039749,-500.0,0.00047115,2]
[343213049,1732467039758,-500.0,0.00047115,2]
[343213050,1732467039768,-181.43,0.00047115,2]
[343213051,1732467039777,-500.0,0.00047115,2]
[343213052,1732467039788,-500.0,0.00047115,2]
[343213053,1732467039798,-500.0,0.00047115,2]
[343213054,1732467039808,-500.0,0.00047115,2]
[343213055,1732467039817,-500.0,0.00047115,2]
[343213056,1732467039826,-500.0,0.00047115,2]
[343213057,1732467039836,-639.35,0.00047115,2]
[343213058,1732467039846,-500.0,0.00047115,2]
[343213059,1732467039856,-500.0,0.00047115,2]
[343213061,1732467039865,-500.0,0.00047115,2]
[343213062,1732467039875,-555.52,0.00047115,2]
[343213063,1732467039885,-650.74,0.00047115,2]
[343213064,1732467039895,-555.52,0.00047115,2]
[343213065,1732467039905,-500.0,0.00047115,2]
[343213070,1732467040059,-212.66407876,0.00047115,2]
[343213071,1732467040069,-505.28597319,0.00047115,2]
[343213072,1732467040079,-500.0,0.00047115,2]
[343213073,1732467040090,-500.0,0.00047115,2]
[343213074,1732467040099,-500.0,0.00047115,2]
[343213075,1732467040108,-500.0,0.00047115,2]
[343213076,1732467040117,-500.0,0.00047115,2]
[343213077,1732467040126,-500.0,0.00047115,2]
[343213078,1732467040135,-500.0,0.00047115,2]
[343213079,1732467040145,-722.03,0.00047115,2]
[343213080,1732467040154,-602.40251758,0.00047115,2]
[343213081,1732467040164,-500.0,0.00047115,2]
[343213082,1732467040174,-500.0,0.00047115,2]
[343213083,1732467040183,-507.27055499,0.00047115,2]
[343213084,1732467040193,-188.11,0.00047115,2]
[343213085,1732467040203,-500.0,0.00047115,2]
[343213086,1732467040212,-501.98572031,0.00047115,2]
[343213087,1732467040222,-503.37378375,0.00047115,2]
[343213088,1732467040232,-500.0,0.00047115,2]
[343213089,1732467040242,-500.0,0.00047115,2]
[343213090,1732467040252,-586.56174133,0.00047115,2]
[343213091,1732467040262,-501.13401129,0.00047115,2]
[343213092,1732467040272,-517.96110793,0.00047115,2]
[343213093,1732467040288,-505.62885027,0.00047115,2]
[343213094,1732467040298,-500.0,0.00047115,2]
[343213095,1732467040308,-500.0,0.00047115,2]
[343213096,1732467040318,-370.71,0.00047115,2]
[343213097,1732467040328,-500.0,0.00047115,2]
[343213098,1732467040337,-500.0,0.00047115,2]
[343213099,1732467040346,-500.0,0.00047115,2]
[343213100,1732467040355,-641.04,0.00047115,2]
[343213101,1732467040364,-500.0,0.00047115,2]
[343213102,1732467040373,-503.75808576,0.00047115,2]
[343213103,1732467040382,-500.0,0.00047115,2]
[343213104,1732467040391,-500.0,0.00047115,2]
[343213105,1732467040401,-500.0,0.00047115,2]
[343213106,1732467040411,-500.0,0.00047115,2]
[343213107,1732467040420,-500.0,0.00047115,2]
[343213108,1732467040429,-500.0,0.00047115,2]
[343213109,1732467040439,-500.0,0.00047115,2]
[343213110,1732467040449,-500.0,0.00047115,2]